Cogmind - Beta 13 *** ADVENTURER MODE // 2024.04.02 @ 05:30:43 Player: Fenodyree Result: Destroyed by H-55 Commando with Assault Rifle Performance ------------- Evolutions (0) 0 Regions Visited (3) 600 Robots Destroyed (33) 165 Value Destroyed (491) 491 Prototype IDs (23) 460 Alien Tech Used (0) 0 Bonus (440) 440 TOTAL SCORE: 2156 Bonus ------- Follower Combat Kills 140 Aligned with FarCom 300 Cogmind --------- Core Integrity 0/250 Matter 300/300 Energy 100/100 System Corruption 1% Temperature Cool (0) Movement Core (50) Location -10/Exiles Parts ------- > --- POWER (1) -------- (None) > --- PROPULSION (2) --- (None) > --- UTILITY (2) ------ (None) > --- WEAPON (2) ------- (None) > --- INVENTORY (5) ---- Humpback Humpback Peak State ------------ > --- POWER ------------ Ion Engine > --- PROPULSION ------- Light Treads Light Treads > --- UTILITY ---------- High-capacity Storage Unit > --- WEAPON ----------- Beam Rifle Heavy Assault Rifle > --- INVENTORY -------- Light Ion Engine Light Treads Improved Heat Sink Medium Battery High-capacity Battery High-capacity Matter Pod High-capacity Matter Pod Structural Scanner Targeting Computer Targeting Computer Weapon Shielding Army-in-a-Box Grenade Launcher Grenade Launcher Grenade Launcher [Rating: 15] Favorites ----------- Power Light Ion Engine Engine Light Ion Engine Power Core Light Nuclear Core Propulsion Light Treads Treads Light Treads Utility High-capacity Storage Unit Device Structural Scanner Storage High-capacity Storage Unit Processor Transport Network Coupler Protection Light Armor Plating Weapon Light Assault Rifle Energy Gun Beam Rifle Ballistic Gun Light Assault Rifle Build | -11 -10 -10 -10 ------- Run | Yrd Mat Min Exi Slots Evolved . | . . . . Power . | . . . . Propulsion . | . . . . Utility . | . . . . Weapon . | . . . . Parts Attached 26 | 7 5 12 2 Power 4 | 1 . 3 . Engine 3 | 1 . 2 . Core 1 | . . 1 . Reactor . | . . . . Propulsion 6 | 2 . 4 . Treads 6 | 2 . 4 . Leg . | . . . . Wheel . | . . . . Hover . | . . . . Flight . | . . . . Utility 9 | 2 3 2 2 Device 2 | 1 . 1 . Storage 4 | 1 2 . 1 Processor 1 | . 1 . . Hackware . | . . . . Protection 2 | . . 1 1 Artifact . | . . . . Weapon 7 | 2 2 3 . Energy Gun 4 | 2 . 2 . Energy Cannon . | . . . . Ballistic Gun 3 | . 2 1 . Ballistic Cannon . | . . . . Launcher . | . . . . Special Weapon . | . . . . Impact Weapon . | . . . . Slashing Weapon . | . . . . Piercing Weapon . | . . . . Special Melee Weapon . | . . . . Unidentified Prototypes . | . . . . Parts Lost 10 | . 1 3 6 Power 2 | . . 1 1 Propulsion 4 | . . 2 2 Utility 2 | . 1 . 1 Weapon 2 | . . . 2 Highest Loss Streak 6 | . 1 2 6 To Critical Strikes 1 | . . . 1 Average Slot Usage (%) 97 | . 99 99 92 Engine 13 | . 14 11 13 Treads 27 | . 28 27 27 Device 3 | . . 8 . Storage 14 | . 15 14 14 Processor 4 | . 10 . . Protection 3 | . . 5 8 Energy Gun 6 | . 1 7 13 Ballistic Gun 21 | . 26 21 13 Naked Turns . | . . . . Heaviest Build 211 | 12 45 54 211 Greatest Support 40 | 40 40 40 40 Greatest Overweight (x) 66 | . 1 2 66 Average Overweight (x) . | . . 1 1 Largest Inventory Capacity 35 | 8 20 20 35 Average Capacity 18 | 7 16 20 24 Most Carried 25 | 8 20 20 25 Average Carried 16 | 5 14 19 18 Final Capacity 20 | 8 20 20 5 Final Carried 20 | 8 20 19 4 Class Distribution -------------------- 57% | Mutant 35% | Scavenger-Mutant 6% | Hauler-Mutant Dominant Class ---------------- Mutant | -10/Materials Scavenger-Mutant | -10/Mines Scavenger-Mutant | -10/Exiles Resources | -11 -10 -10 -10 ----------- Run | Yrd Mat Min Exi Matter Collected 1058 | 306 189 523 40 Remotely 78 | 61 17 . . Salvage Created 955 | 239 337 379 . Parts 69 | 18 34 17 . Haulers Intercepted 2 | . 2 . . Recyclers Shooed 1 | . 1 . . Parts Field Recycled . | . . . . Retrieved Matter . | . . . . Parts Self-Destructed . | . . . . Prevented . | . . . . Kills | -11 -10 -10 -10 ------- Run | Yrd Mat Min Exi Combat Hostiles Destroyed 19 | . 10 9 . Guns 19 | . 10 9 . Classes Destroyed 8 | 3 5 . . Worker 2 | 2 . . . Tunneler 5 | 5 . . . Hauler 2 | . 2 . . Recycler 2 | 1 . 1 . Mechanic 1 | . 1 . . Watcher 2 | . 2 . . Swarmer 13 | . 9 4 . Grunt 6 | . 1 5 . Best Kill Streak 7 | 2 7 3 . Combat Bots Only 7 | . 7 3 . Max Kills in Single Turn 1 | 1 1 1 . Gunslinging . | . . . . Exploded . | . . . . Melee . | . . . . Uniques/NPCs Destroyed . | . . . . Combat | -11 -10 -10 -10 -------- Run | Yrd Mat Min Exi Hostile Shots Fired 216 | . 59 49 108 Missed 61 | . 14 14 33 Damage Taken 1595 | . 316 295 984 Core 252 | . 21 41 190 Absorbed by Shields . | . . . . Ignored by Resistances 486 | . 104 92 290 Core Remaining (%) 100 | 100 . . . Volleys Fired 125 | 24 59 36 6 Largest 2 | 1 2 2 1 Hottest 85 | 40 80 85 56 Shots Fired 217 | 24 115 72 6 Gun 217 | 24 115 72 6 Cannon . | . . . . Launcher . | . . . . Special . | . . . . Kinetic 163 | . 93 70 . Thermal 48 | 24 16 2 6 Explosive . | . . . . Electromagnetic 6 | . 6 . . Robot Hit Streak 22 | 7 22 22 9 Robot Miss Streak 6 | 1 4 6 . Penetration Max . | . . . . Secondary Targets 4 | . 2 2 . Max Gunslinging Chain 1 | . 1 1 . Shots Hit Robots 162 | 18 78 60 6 Core Hits 63 | 9 29 24 1 Critical Kills . | . . . . Critical Parts Destroyed . | . . . . Critical Strikes 1 | . . 1 . Burn 1 | . . 1 . Melee Attacks . | . . . . Impact . | . . . . Slashing . | . . . . Piercing . | . . . . Sneak Attacks . | . . . . Combat Hostiles . | . . . . Follow-up Attacks . | . . . . Damage Inflicted 1579 | 201 761 531 86 Guns 1517 | 201 702 528 86 Cannons . | . . . . Explosions 57 | . 57 . . Melee . | . . . . Ramming 5 | . 2 3 . Kinetic 1035 | . 538 497 . Thermal 485 | 201 167 31 86 Explosive . | . . . . Electromagnetic 54 | . 54 . . Impact . | . . . . Slashing . | . . . . Piercing . | . . . . Highest Corruption 1 | . . . 1 Average Corruption 1 | . . . 1 Corruption Purged . | . . . . Corruption Blocked . | . . . . Overload Shots . | . . . . Overflow Damage 14 | . 14 . . Projectiles . | . . . . Explosions 14 | . 14 . . Melee . | . . . . Knockbacks . | . . . . Impact . | . . . . Kinetic . | . . . . Secondary . | . . . . Self-Inflicted Damage 18 | . 18 . . Shots 1 | . 1 . . Rammed 2 | . 1 1 . Targets Rammed 2 | . 1 1 . Kicked . | . . . . Crushed . | . . . . Highest Temperature 102 | . 102 44 71 Average Temperature 28 | . 32 17 44 Received Heat Transfer 258 | . 42 150 66 Siege Activations . | . . . . Robots Corrupted . | . . . . Combat Hostiles . | . . . . Parts Fried . | . . . . Impact Corruptions . | . . . . Robots Melted . | . . . . Combat Hostiles . | . . . . Parts Melted 2 | . 1 1 . Heat Transferred 1170 | 450 350 148 222 Parts Sabotaged . | . . . . Parts Stolen . | . . . . Parts Stripped . | . . . . Power Chain Reactions 1 | . 1 . . Alert | -11 -10 -10 -10 ------- Run | Yrd Mat Min Exi Peak Influence 213 | 40 213 175 . Initial 22 | . 22 . . Average 54 | 12 46 73 . Maximum Alert Level 1 | . 1 . . Low Security (%) 95 | 100 92 100 . Level 1 4 | . 7 . . Level 2 . | . . . . Level 3 . | . . . . Level 4 . | . . . . Level 5 . | . . . . High Security . | . . . . Max Security . | . . . . Squads Dispatched 1 | . 1 . . Investigation 1 | . 1 . . Extermination . | . . . . Reinforcement . | . . . . Assault . | . . . . Garrison . | . . . . Intercept . | . . . . Searches Triggered . | . . . . Construction Impeded . | . . . . Haulers Reinforced . | . . . . Active Scanning Responses . | . . . . Cargo Convoy Interrupts . | . . . . Stealth | -11 -10 -10 -10 --------- Run | Yrd Mat Min Exi Distress Signals 1 | . 1 . . Communications Jammed . | . . . . Distress Signals . | . . . . Times Spotted 47 | . 24 16 7 Peak Tracking Total 5 | . 4 3 5 Tactical Retreats 2 | . 2 . . Traps | -11 -10 -10 -10 ------- Run | Yrd Mat Min Exi Traps Triggered 1 | . 1 . . Indirectly . | . . . . Trap Hack Attempts . | . . . . Triggered . | . . . . Disarmed . | . . . . Reprogrammed . | . . . . Reused . | . . . . Traps Extracted . | . . . . Installed . | . . . . Triggered . | . . . . Machines | -11 -10 -10 -10 ---------- Run | Yrd Mat Min Exi Machines Disabled 2 | . . 2 . Max in Single Turn . | . . . . Machines Repaired . | . . . . Machines Dismantled . | . . . . Machines Sabotaged . | . . . . Overloaded Fab Kills . | . . . . Hacking | -11 -10 -10 -10 --------- Run | Yrd Mat Min Exi Machines Accessed 9 | . 8 . 1 Terminals 8 | . 8 . . Fabricators . | . . . . Repair Stations . | . . . . Recycling Units . | . . . . Scanalyzers . | . . . . Garrison Access . | . . . . Total Hacks 19 | . 18 . 1 Successful 12 | . 11 . 1 Failed 7 | . 7 . . Catastrophic 1 | . 1 . . Database Lockouts . | . . . . Manual 12 | . 11 . 1 Terminals 18 | . 18 . . Fabricators . | . . . . Repair Stations . | . . . . Recycling Units . | . . . . Scanalyzers . | . . . . Garrison Access . | . . . . Terminal Hacks 10 | . 9 . 1 Record 1 | . 1 . . Part Schematic 1 | . 1 . . Branch Access Points 1 | . 1 . . Terminal Index 1 | . 1 . . Alert Level 1 | . 1 . . Unreport Threat 1 | . 1 . . Locate Traps 2 | . 2 . . Dispatch Records 1 | . 1 . . Derelict Proto ID Bank 1 | . . . 1 Fabricator Hacks . | . . . . Repair Station Hacks . | . . . . Recycling Unit Hacks . | . . . . Scanalyzer . | . . . . Garrison Access Hacks . | . . . . Unauthorized Hacks 2 | . 2 . . Terminals 2 | . 2 . . Track 1 | . 1 . . Botnet 1 | . 1 . . Fabricators . | . . . . Repair Stations . | . . . . Recycling Units . | . . . . Scanalyzers . | . . . . Garrison Access . | . . . . Data Cores Recovered . | . . . . Used . | . . . . Hacking Detections 6 | . 6 . . Full Trace Events . | . . . . Feedback Events . | . . . . Feedback Blocked . | . . . . Robot Schematics Acquired . | . . . . Robots Built . | . . . . Authchips . | . . . . Time . | . . . . Total Robot Build Rating . | . . . . Part Schematics Acquired 1 | . 1 . . Parts Built . | . . . . Authchips . | . . . . Time . | . . . . Total Part Build Rating . | . . . . Parts Repaired . | . . . . Time . | . . . . Parts Recycled . | . . . . Recycled Matter . | . . . . Retrieved Matter . | . . . . Retrieved Components . | . . . . Parts Scanalyzed . | . . . . Part Schematics Acquired . | . . . . Parts Damaged . | . . . . Bothacking | -11 -10 -10 -10 ------------ Run | Yrd Mat Min Exi Used RIF Installer . | . . . . Robots Hacked . | . . . . Non-combat . | . . . . Combat . | . . . . Robot Hacks Applied . | . . . . Relay Couplers Released . | . . . . Fabnet Peak Effective % . | . . . . Robots Rewired . | . . . . Allies Hacked . | . . . . Hacks Repelled . | . . . . Allies | -11 -10 -10 -10 -------- Run | Yrd Mat Min Exi Total Allies 3 | . . 3 . Largest Group 3 | . . 3 2 Highest-Rated Group 40 | . . 40 32 Highest-Rated Ally 16 | . . 16 16 Total Orders . | . . . . Ally Attacks 37 | . . 28 9 Total Damage 424 | . . 314 110 Kills 6 | . . 5 1 Allies Corrupted . | . . . . Allies Melted . | . . . . Intel | -11 -10 -10 -10 ------- Run | Yrd Mat Min Exi Robot Analysis Total . | . . . . Derelict Logs Recovered 2 | . . 2 . Drone Launches . | . . . . Drone Recoveries . | . . . . Exploration | -11 -10 -10 -10 ------------- Run | Yrd Mat Min Exi Turns Passed 3953 | 269 1657 1237 790 Spaces Moved 1512 | 130 663 461 258 Core 5 | 4 . . 1 Treads 1507 | 126 663 461 257 Legs . | . . . . Wheels . | . . . . Hover . | . . . . Flight . | . . . . Fastest Speed 50 | 50 160 240 240 Average Speed 232 | 156 215 240 299 Slowest Speed 3350 | 160 240 320 3350 Overloaded Moves . | . . . . Propulsion Burnouts . | . . . . Robots Hopped . | . . . . Cave-ins Triggered . | . . . . Exploration Rate (%) 64 | 8 97 92 59 Regions Visited 3 Branch Regions 2 Pre-discovered Areas 1 | . . 1 . Known Exits Taken 1 | . 1 . . Unknown Exits Taken 2 | 1 . 1 . Scrap Searched 1 | . . 1 . Spaces Dug . | . . . . Terrain Destroyed 2 | . 2 . . Melee . | . . . . Projectile . | . . . . AOE 2 | . 2 . . Terrain Rammed . | . . . . Walls Destroyed . | . . . . Machines Disabled . | . . . . Actions | -11 -10 -10 -10 --------- Run | Yrd Mat Min Exi Total 1801 | 169 798 531 303 Wait 44 | . 33 11 . Move 1509 | 129 662 460 258 Hop . | . . . . Pick Up 63 | 9 24 4 26 Fast Attach 8 | 6 1 1 . Attach 6 | 1 1 2 2 Detach 1 | . 1 . . Swap 12 | . 3 9 . Drop 31 | . 13 7 11 Fire 125 | 24 59 36 6 Melee . | . . . . Ram . | . . . . Kick . | . . . . Crush 2 | . 1 1 . Escape Stasis . | . . . . Rewire . | . . . . Trap . | . . . . Miscellaneous . | . . . . Route ------- -11/Scrapyard -10/Materials (discovered 5 exits: [*Mat x3] / *Min x2) -10/Mines (discovered 3 exits: [*Mat x2] / *Exi) -10/Exiles History --------- Turn | Location | Event 10 | -11/Scrapyard | Discovered new exit (range 15) 270 | -11/Scrapyard | Entered Materials 309 | -10/Materials | Build established: Mutant 421 | -10/Materials | Destroyed 7 combat bots 500 | -10/Materials | Discovered new exit (range 13) 698 | -10/Materials | Discovered new exit (range 14) 1267 | -10/Materials | Discovered new exit (range 10) 1359 | -10/Materials | Discovered new exit (range 16) 1529 | -10/Materials | Discovered new exit (range 11) 1812 | -10/Materials | Identified exit to Mines 1927 | -10/Materials | Entered Mines 1987 | -10/Mines | Learned 2 Materials zone layouts 2349 | -10/Mines | Assisted by bots powering up and referring to "LRC-V3" 2586 | -10/Mines | Build established: Scavenger-Mutant 2593 | -10/Mines | Discovered new exit (range 9) 2711 | -10/Mines | Learned location of Storage (-7) 2711 | -10/Mines | Joined a pair of Derelicts in attacking an 0b10 outpost 2860 | -10/Mines | Discovered new exit (range 10) 3154 | -10/Mines | Deemed a non-threat by the Exiles lab entrance 3154 | -10/Mines | Discovered new exit (range 5) 3164 | -10/Mines | Entered Exiles 3164 | -10/Exiles | Accompanied by 2 allies 3224 | -10/Exiles | Met 8R-AWN 3263 | -10/Exiles | Met EX-HEX 3349 | -10/Exiles | Met EX-BIN 3378 | -10/Exiles | Aligned with FarCom system 3380 | -10/Exiles | Given EX-Vault access code 3438 | -10/Exiles | Opened EX-Vault 3460 | -10/Exiles | Found Prototype Device 3466 | -10/Exiles | Identified Trap Reconfigurator 3481 | -10/Exiles | Found Army-in-a-Box 3492 | -10/Exiles | Found Flying Fortress v7 3545 | -10/Exiles | Exiles lab attacked by MAIN.C 3936 | -10/Exiles | Core integrity fell below 50% 3948 | -10/Exiles | Core integrity fell below 20% 3954 | -10/Exiles | Destroyed by H-55 Commando with Assault Rifle Last Messages --------------- 03921_ Critical hit (Smash). 03921_ Hvy. Assault Rifle destroyed. 03921_ System corrupted by crushing effect (+1). 03923_ Penetrated by Slug. 03923_ Slug penetrates G-34 Mercenary. 03923_ G-34 Mercenary destroyed. 03925_ Slug penetrates Wall. 03926_ Penetrated by Slug. 03929_ Lgt. Treads destroyed. 03932_ Penetrated by Slug. 03935_ Ion Engine destroyed. 03938_ H-55 Commando suffers critical hit (Destroy). 03938_ Penetrated by Slug. 03938_ Beam Rifle destroyed. 03941_ Penetrated by Slug. 03941_ Lgt. Treads destroyed. 03945_ Penetrated by Slug. 03950_ Knocked back. 03951_ Penetrated by Slug. 03954_ Humpback destroyed. Map ----- +----------------------------------------------------+ | ?????????????????????????????????????????????????? | | ?????????????????????????????????????????????????? | | ?????????????????????????????????????????????????? | | ?????????????????????????????????????????????????? | | ?????????????????????????????????????????????????? | | ?????????????????????????????????????????????????? | | ?????????????????????????????????????????????????? | | ?????????????????????????????????????????????????? | | ?????????????????????????????????????????????????? | | ?????????????????????????????????????????????????? | | ?????????????????????????????????????????????????? | | ?????????????????????????????????????????????????? | | ?????????????????????????????????????????????????? | | ?????????????????????????????????????????????????? | | ?????????????????????????????????????????????????? | | ?????????????????????????????????????????????????? | | ?????????????????????????????????????????????????? | | ????????????? ??????????????????????????????????? | | ?????????????# ?????????????????????????????????? | | ?????????????# ???????????????????????????????? | | ??????????????# ??????????????#######?????????? | | ??????????????# #######??????# "#?????????? | | ??????????????# #""##?????# "#?????????? | | ???????????????# ]!#?????# "#?????????? | | ???????????????##" ==!]##???## ""#?????????? | | ???????????????#"" !!@*!#####" ""#?????????? | | ?????????????????## !!!b! ##" ""#?????????? | | ??????????????????## !! # ###?????????? | | ???????????????????#"## #???????????? | | ???????????????????#??#### ##??????????? | | ?????????????????????????### "#??????????? | | ??????????????????????????#" * ###????????? | | ?????????????????????????""" =%[ ##???????? | | ?????????????????????? "### h *% ######??? | | ????????????????????? "#?## %% """#### | | ?????????????????????? ##??# == !% | | ??????????????????????""""""###???#"# = | | ??????????????????????######??????#### =%* | | ?????????????????????????????????????### | | ???????????????????????????????????????### | | ?????????????????????????????????????????## | | ??????????????????????????????????????????## | | ???????????????????????????????????????????##" | | ????????????????????????????????????????????#""" | | ????????????????????????????????????????????#" | | ???????????????????????????????????????????#"" | | ???????????????????????????????????????????#""" | | ???????????????????????????????????????????""" | | ???????????????????????????????????????????""" | | ????????????????????????????????????????????" | +----------------------------------------------------+ Best States ------------- Heat Dissipation 25 Energy Generation 14 Energy Capacity 250 Matter Stores 400 Matter Capacity 400 Sight Range 16 Terrain Scan Density 10 Armor Coverage 150 Resistance: KI 20 Resistance: TH 20 Resistance: EX 20 Resistance: EM 20 Resistance: I 20 Resistance: S 20 Resistance: P 20 Evasion (%) 40 Recoil Reduction 2 Offensive Hacking 10 Item Schematics ----------------- Huge Storage Unit | -10/Materials | Hacked Robot Schematics ------------------ None Fabricated ------------ Nothing Alien Tech Used ----------------- None Achievements -------------- Tank Challenges ------------ None Game ------ Seed MiningTripodMonowheel Manual? 0 Play Time 00:24:32 Cumulative 32.5 hours Start 2024.04.02 @ 05:04:51 End 2024.04.02 @ 05:30:43 Sessions 1 Manual Loads 0 Difficulty Adventurer Special Mode None Game No. 27 Rogue 16 Adventurer 5 Explorer 6 Win Type - Total 0 Types 0/0/0/0/0/0/0/0/0 Lore% 27 Gallery% 42 Achievement% 27 Wizard Run 0 Options --------- Layout 0 ASCII 0 Keyboard 0 Movement Numpad Keybinds 0 Fullscreen 2 Font 12/Smallcaps Map View 41x27 Zoom Use 100% Tactical HUD 1 Map Filters NONE Filters NONE Steam 1 RUN: 8b8f807a-81b2-47dc-9a64-17e65fdfe5d2